bitfinex/quotes_ETHUSD_20240530
["timestamp","ask_amount","ask_price","bid_price","bid_amount"]
[1717077493614,1.91,3791.8,3791.7,3.0]
[1717077493820,1.91,3791.8,3791.3,3.34572553]
[1717077494042,1.91,3791.8,3791.4,0.4638007]
[1717077495875,1.91,3791.8,3791.3,0.34572553]
[1717077496043,2.63706,3792.1,3791.3,0.34572553]
[1717077496044,1.91,3791.4,3791.3,0.34572553]
[1717077498865,1.91,3791.4,3791.2,0.45725531]
[1717077499016,1.91,3791.4,3790.6,15.36]
[1717077500655,2.63725,3791.9,3790.6,15.36]
[1717077500850,1.91,3791.1,3790.6,15.36]
[1717077501473,1.91,3791.1,3790.6,3.0]
[1717077501677,1.91,3791.1,3790.7,3.0]
[1717077501875,1.91,3791.1,3790.8,0.6]
[1717077502075,1.91,3791.1,3790.4,3.28509219]
[1717077502286,1.91,3791.1,3790.5,0.55]
[1717077502446,1.91,3790.7,3790.5,0.55]
[1717077502777,0.31560796,3790.7,3790.5,0.55]
[1717077503582,0.31560796,3790.7,3790.6,1.1386328]
[1717077504074,0.31560796,3790.7,3790.6,10.0605738]
[1717077504379,0.31560796,3790.7,3790.6,12.8033528]
[1717077504578,0.31560796,3790.7,3790.6,12.1120658]
[1717077504777,0.31560796,3790.7,3790.6,8.1009038]
[1717077504944,0.31560796,3790.7,3790.6,6.9009038]
[1717077505144,0.31560796,3790.7,3790.6,10.9009038]
[1717077505489,0.31560796,3790.7,3790.6,8.1386328]
[1717077506060,2.63743,3791.6,3790.6,8.1386328]
[1717077506276,2.63717,3792.0,3790.7,3.81386328]
[1717077506471,1.91,3791.5,3790.7,3.81386328]
[1717077506786,1.91,3791.5,3790.8,0.55]
[1717077506968,1.91,3791.5,3790.9,0.95024961]
[1717077507291,1.91,3791.8,3791.0,0.55]
[1717077507595,1.91,3791.8,3791.0,2.01480706]
[1717077507793,1.91,3791.8,3791.1,0.91666527]
[1717077507973,2.63668,3792.7,3791.2,1.61251467]
[1717077508176,1.91,3791.9,3791.2,4.61251467]
[1717077508386,1.91,3791.9,3791.3,0.91657754]
[1717077508682,1.91,3791.9,3791.3,3.91657754]
[1717077508885,1.91,3791.9,3791.4,1.46650477]
[1717077509181,1.91,3791.9,3791.5,1.41796943]
[1717077509486,1.91,3791.9,3791.6,0.55]
[1717077509705,1.91,3791.9,3791.6,1.46650515]
[1717077509905,1.91,3791.9,3791.6,0.55]
[1717077510105,1.91,3791.9,3791.7,5.866803]
[1717077510266,1.91,3791.9,3791.8,4.36536277]
[1717077510608,1.91,3791.9,3791.8,39.36556277]
[1717077510935,1.91,3791.9,3791.8,40.28205563]
[1717077511078,1.91,3791.9,3791.8,39.36556277]
[1717077511992,1.91,3791.9,3791.8,38.95921314]
[1717077512217,1.91,3791.9,3791.8,38.04272377]
[1717077512381,1.91,3791.9,3791.8,36.60830046]
[1717077512577,1.91,3791.9,3791.8,38.86673746]
[1717077512767,1.91,3791.9,3791.8,36.60830046]
[1717077512967,1.91,3791.9,3791.8,35.69182677]
[1717077513272,1.91,3791.9,3791.8,0.69182677]
[1717077513493,1.91,3791.9,3791.5,0.50146466]
[1717077513698,1.91,3791.9,3791.1,3.54814179]
[1717077513699,1.91,3791.9,3791.2,35.0]
[1717077514007,1.91,3791.9,3791.3,9.29145469]
[1717077514212,1.91,3791.9,3791.4,2.29145469]
[1717077514520,2.63662,3792.8,3791.4,2.29145469]
[1717077514521,1.91,3791.5,3791.4,2.29145469]
[1717077514725,1.91,3791.5,3791.4,6.31083369]
[1717077514892,1.91,3791.5,3791.4,11.88734021]
[1717077515437,1.91,3791.5,3791.4,10.5124843]
[1717077515624,1.91,3791.5,3791.4,6.59588552]
[1717077515993,1.91,3791.5,3791.4,2.59588552]
[1717077518845,1.91,3791.5,3790.9,10.73080057]
[1717077519013,1.91,3791.0,3790.9,10.73080057]
[1717077519208,1.91,3791.0,3790.9,4.86699127]
[1717077519525,1.91,3791.0,3790.9,36.86699127]
[1717077519738,1.91,3791.0,3790.9,39.86699127]
[1717077520441,2.63722,3791.9,3790.9,41.24209096]
[1717077520627,1.91,3791.2,3791.0,2.59588552]
[1717077521265,1.91,3791.2,3791.0,3.97094616]
[1717077521463,1.91,3791.2,3791.0,2.59588552]
[1717077521667,2.63697,3792.3,3791.1,0.28525499]
[1717077521985,1.91,3791.7,3791.2,1.46484486]
[1717077522338,1.91,3791.7,3791.3,36.46484486]
[1717077522569,1.91,3791.7,3791.4,5.2917808]
[1717077522749,1.91,3791.7,3791.5,1.86695268]
[1717077522953,1.91,3791.7,3791.6,0.91670307]
[1717077523349,1.91,3791.7,3791.6,35.91670307]
[1717077523557,1.91,3791.7,3791.6,37.2917808]
[1717077524343,3.25738418,3793.6,3791.6,37.2917808]
[1717077524344,0.25738418,3793.6,3791.6,38.2917808]
[1717077524546,1.91,3793.1,3791.9,7.32869275]
[1717077524759,1.91,3792.7,3792.0,5.8417808]
[1717077524963,1.91,3792.7,3792.6,35.0]
[1717077525646,1.91,3792.7,3792.6,35.91631144]
[1717077525842,1.91,3792.7,3792.6,35.28525499]
[1717077526064,1.91,3792.7,3792.6,36.20154179]
[1717077526261,1.91,3792.7,3792.6,38.39898579]
[1717077526500,1.91,3792.7,3792.6,39.77336099]
[1717077526661,1.91,3792.7,3792.6,37.57590958]
[1717077526861,1.91,3792.7,3792.6,39.20154179]
[1717077527058,1.91,3792.7,3792.6,38.28525499]
[1717077530814,1.91,3792.7,3792.6,0.28525499]
[1717077530966,1.91,3792.7,3792.0,3.0]
[1717077531171,1.91,3792.7,3792.1,4.0]
[1717077531413,1.91,3792.7,3792.2,38.0]
[1717077531703,1.91,3792.7,3792.3,1.2355046]
[1717077532265,1.91,3792.7,3792.4,35.0]
[1717077535498,1.91,3792.7,3792.3,1.2355046]
[1717077535707,1.91,3792.7,3791.9,6.78055096]
[1717077535902,2.63645,3793.0,3792.0,4.0]
[1717077536081,1.91,3792.1,3792.0,39.0]
[1717077536709,1.91,3792.1,3792.0,35.0]
[1717077536919,1.91,3792.1,3792.0,37.59588552]
[1717077537269,1.91,3792.1,3792.0,40.59588552]
[1717077539671,1.91,3792.1,3792.0,37.59588552]
[1717077541599,1.91,3792.1,3792.0,35.0]
[1717077541901,6.45686,3792.4,3791.5,24.76]
[1717077542236,1.91,3791.6,3791.5,24.76]
[1717077542434,1.91,3791.6,3791.5,5.3]
[1717077544101,1.91,3791.6,3790.8,26.24055096]
[1717077544237,2.63709,3792.1,3790.9,9.59588552]
[1717077544432,1.91,3791.0,3790.8,26.24055096]
[1717077544759,1.91,3791.0,3790.9,35.0]
[1717077550992,2.63792,3790.9,3790.2,6.78055096]
[1717077551231,2.63792,3790.9,3790.3,37.59588552]
[1717077551415,1.91,3790.4,3790.3,37.59588552]
[1717077553410,2.63764,3791.3,3790.3,37.59588552]
[1717077553583,1.91,3790.6,3790.3,37.59588552]
[1717077564447,2.63817,3790.5,3790.3,37.59588552]
[1717077564617,2.63817,3790.5,3790.3,35.0]
[1717077564818,2.63838,3790.2,3789.8,6.78055096]
[1717077565041,1.91,3789.9,3789.8,6.78055096]
[1717077565240,1.91,3789.9,3789.6,5.3]
[1717077565432,1.91,3789.9,3789.7,2.59588552]
[1717077567738,4.54859,3789.9,3789.7,2.59588552]
[1717077568853,4.54859,3789.9,3789.6,5.3]
[1717077569590,4.54859,3789.9,3789.7,35.0]
[1717077573398,4.54859,3789.9,3789.0,6.78055096]
[1717077573561,1.91,3789.1,3789.0,6.78055096]
[1717077573781,1.91,3789.1,3789.0,35.0]
[1717077573956,1.91,3789.1,3789.0,37.59588552]
[1717077574757,1.91,3789.1,3789.0,37.65409472]
[1717077576303,1.91,3789.1,3789.0,2.65409472]
[1717077576695,1.91,3789.1,3789.0,0.0582092]
[1717077577003,1.91,3789.1,3788.8,35.0]
[1717077577190,1.91,3789.1,3789.0,0.0582092]
[1717077577389,1.91,3789.1,3788.8,35.0]
[1717077577598,1.91,3789.1,3789.0,0.0582092]
[1717077577800,1.91,3789.1,3788.8,35.0]
[1717077578008,1.91,3789.1,3789.0,0.0582092]
[1717077578231,1.91,3789.1,3788.8,35.0]
[1717077578438,1.91,3789.1,3789.0,0.0582092]
[1717077578733,1.91,3789.1,3788.8,35.0]
[1717077578892,1.91,3789.1,3789.0,0.0582092]
[1717077579070,2.63921,3789.0,3788.9,0.05830853]
[1717077579274,2.63921,3789.0,3788.8,35.0]
[1717077579869,2.63921,3789.0,3788.1,1.056372]
[1717077580267,1.91,3788.2,3788.1,1.056372]
[1717077581218,0.93143242,3788.2,3788.1,1.056372]
[1717077584705,0.93143242,3788.2,3788.1,36.056372]
[1717077585620,0.93143242,3788.2,3788.1,1.056372]
[1717077586917,1.91,3788.2,3788.1,1.056372]
[1717077587220,1.91,3788.2,3787.5,35.0]
[1717077587524,1.91,3787.7,3787.6,2.59588552]
[1717077587924,1.91,3787.7,3787.4,5.3]
[1717077588085,1.91,3787.7,3787.6,35.0]
[1717077589113,1.91,3787.7,3787.6,35.04062715]
[1717077589314,1.91,3787.7,3787.6,0.04062715]
[1717077589516,1.91,3787.7,3787.6,0.05766116]
[1717077589717,1.91,3787.7,3786.8,4.0]
[1717077590023,4.7,3788.6,3786.9,35.55449394]
[1717077590024,1.91,3787.1,3786.9,35.55449394]
[1717077591799,1.89141427,3791.8,3786.9,0.55449394]
[1717077591800,2.63997,3788.0,3786.9,0.55449394]
[1717077592001,1.91,3787.9,3786.9,0.05833159]
[1717077592326,1.91,3787.9,3787.6,35.0]
[1717077592688,1.91,3787.9,3787.6,0.05763567]
[1717077593130,1.91,3787.9,3787.8,35.0]
[1717077593499,1.35953025,3787.9,3787.8,35.0]
[1717077594423,1.91,3788.3,3787.8,35.0]
[1717077594788,1.91,3788.3,3787.1,2.64053]
[1717077594989,1.91,3788.3,3787.3,4.0]
[1717077595190,1.91,3788.3,3788.2,35.0]
[1717077595588,2.63942,3788.8,3788.2,35.0]
[1717077595828,1.91,3788.5,3788.2,35.0]
[1717077596201,2.63912,3789.2,3788.2,35.0]
[1717077596409,1.91,3789.0,3788.3,2.59588552]
[1717077596617,1.91,3789.4,3788.3,2.59588552]
[1717077596944,1.91,3789.2,3788.0,2.63991]
[1717077597113,2.6388,3789.6,3788.4,35.0]
[1717077597114,1.91,3789.5,3788.4,35.0]
[1717077597293,1.91,3789.5,3788.5,2.59588552]
[1717077597640,2.63855,3790.0,3788.5,2.59588552]
[1717077597845,1.91,3789.7,3788.2,4.01551635]
[1717077598138,1.91,3789.7,3788.6,35.0]
[1717077598437,1.91,3789.7,3788.7,3.9170808]
[1717077598732,1.91,3789.7,3788.7,3.0]
[1717077598935,1.91,3789.7,3788.7,7.0]
[1717077599092,1.91,3789.7,3789.0,35.0]
[1717077600367,1.91,3790.1,3789.0,35.0]
[1717077600519,2.63798,3790.8,3788.8,2.04209379]
[1717077600520,1.91,3790.5,3789.1,7.106122]
[1717077600719,1.91,3790.5,3789.1,3.18912]
[1717077600945,1.91,3790.5,3789.3,2.63896]
[1717077601157,1.91,3790.5,3789.9,35.0]
[1717077601720,1.91,3790.9,3789.9,35.0]
[1717077601965,1.91,3790.5,3789.9,35.0]
[1717077602158,1.91,3790.5,3790.0,1.17305096]
[1717077604694,2.63736,3791.7,3790.0,1.17305096]
[1717077604990,1.91,3791.2,3790.1,0.55]
[1717077605119,2.63736,3791.7,3790.5,35.0]
[1717077605526,1.91,3791.8,3790.5,35.0]
[1717077605719,2.63707,3792.1,3790.5,1.0]
[1717077605982,2.63677,3792.6,3790.6,3.18804]
[1717077606124,1.91,3792.0,3790.7,0.418804]
[1717077606324,1.91,3792.0,3791.2,35.0]
[1717077607042,1.91,3792.0,3791.0,5.3]
[1717077607255,1.91,3792.4,3791.1,3.0]
[1717077607572,2.63644,3793.0,3791.8,35.0]
[1717077607773,1.91,3792.8,3791.8,35.0]
[1717077607931,1.91,3792.8,3791.9,2.04649902]
[1717077608476,1.91,3792.8,3791.3,3.0]
[1717077608686,1.91,3792.8,3792.0,35.0]
[1717077609034,1.91,3792.8,3791.7,3.0]
[1717077609277,1.91,3792.8,3791.8,0.55]
[1717077609475,1.91,3792.8,3792.4,35.0]
[1717077609673,1.76,3792.8,3792.5,2.31880412]
[1717077610133,1.76,3792.8,3792.2,5.3]
[1717077610333,1.76,3792.8,3792.6,35.0]
[1717077612067,2.63685,3792.4,3792.2,5.3]
[1717077612238,1.91,3792.3,3792.2,5.3]
[1717077612439,2.6373,3791.8,3790.5,35.0]
[1717077612671,1.91,3792.4,3790.9,4.0]
[1717077612672,1.91,3791.0,3790.9,4.0]
[1717077612856,0.9321841,3791.0,3790.9,4.0]
[1717077613188,2.63753,3791.5,3790.9,4.0]
[1717077613337,2.63753,3791.5,3790.6,2.59588552]
[1717077613338,1.91,3791.7,3790.6,2.59588552]
[1717077613659,1.91,3791.7,3790.7,1.2355046]
[1717077613858,2.63692,3792.4,3790.7,1.2355046]
[1717077614369,2.63692,3792.4,3790.8,4.0]
[1717077614608,2.63692,3792.4,3790.9,3.82355046]
[1717077614908,2.63546,3794.4,3790.9,3.82355046]
[1717077614909,2.63657,3792.9,3791.1,2.63773]
[1717077615040,2.63657,3792.9,3791.2,3.55]
[1717077615245,2.63657,3792.9,3791.3,3.6376]
[1717077615442,2.63657,3792.9,3791.4,3.55]
[1717077615684,2.63657,3792.9,3791.5,1.01876]
[1717077616043,1.91,3793.0,3791.6,2.6374]
[1717077616242,2.63623,3793.3,3791.7,3.55]
[1717077616472,2.63623,3793.3,3791.7,7.55]
[1717077616748,2.63623,3793.3,3791.8,0.75357506]
[1717077617197,2.63623,3793.3,3791.9,2.63718]
[1717077617358,2.63623,3793.3,3792.0,3.55]
[1717077617543,4.54595,3793.7,3792.0,3.55]
[1717077618086,4.09298175,3800.7,3792.0,3.55]
[1717077618087,1.91,3792.9,3792.0,3.0]
[1717077618399,1.91,3792.9,3792.1,0.43035751]
[1717077618547,1.91,3792.9,3791.8,3.75357506]
[1717077618746,1.91,3792.9,3791.9,4.0]
[1717077618968,1.91,3792.9,3791.8,3.75357506]
[1717077619187,1.91,3792.9,3791.8,0.75357506]
[1717077619410,2.63641,3793.1,3791.5,3.0]
[1717077619695,2.63641,3793.1,3791.7,4.0]
[1717077619894,2.63641,3793.1,3791.8,3.55]
[1717077620543,1.91,3793.3,3791.8,3.55]
[1717077621344,2.6361,3793.5,3791.8,3.55]
[1717077621345,2.6361,3793.5,3792.0,4.0]
[1717077621658,2.6361,3793.5,3792.1,4.018716]
[1717077622344,2.63582,3793.9,3792.2,4.55]
[1717077622540,2.63582,3793.9,3792.3,3.0]
[1717077622744,2.63582,3793.9,3792.4,0.55]
[1717077623353,2.63582,3793.9,3792.3,3.0]
[1717077623354,2.63606,3793.6,3792.3,3.0]
[1717077623563,1.91,3793.2,3792.4,4.0]
[1717077623793,1.91,3793.2,3792.5,3.0]
[1717077623953,1.91,3793.2,3792.4,4.0]
[1717077624158,2.63637,3793.1,3792.4,4.0]
[1717077624371,1.91,3792.8,3792.4,4.0]
[1717077624579,1.91,3792.8,3791.6,1.055366]
[1717077624580,1.91,3792.9,3791.6,1.055366]
[1717077624797,1.91,3792.9,3791.8,4.0]
[1717077625105,1.91,3792.9,3791.6,1.055366]
[1717077625106,1.91,3791.9,3791.6,1.055366]
[1717077625389,2.63712,3792.1,3791.4,5.30118956]
[1717077625548,2.63677,3792.6,3791.5,0.53011896]
[1717077626310,2.63677,3792.6,3790.7,1.0]
[1717077626448,1.91,3792.3,3790.7,1.0]
[1717077626644,1.91,3792.3,3790.8,0.55]
[1717077627260,2.63699,3792.2,3790.8,0.55]
[1717077628665,2.63699,3792.2,3790.8,3.55]
[1717077628994,2.63699,3792.2,3790.9,0.455]
[1717077629178,2.63699,3792.2,3790.8,0.55]
[1717077629377,1.91,3791.9,3790.6,0.55]
[1717077629577,1.91,3791.9,3790.8,1.0]
[1717077629781,1.91,3791.9,3790.8,3.0]
[1717077629978,2.63699,3792.2,3790.9,0.55]
[1717077630170,2.63699,3792.2,3791.0,0.855]
[1717077631489,2.63699,3792.2,3790.9,0.55]
[1717077631658,2.63699,3792.2,3790.8,0.55]
[1717077631858,2.63672,3792.6,3790.8,1.55]
[1717077632117,2.63672,3792.6,3791.2,3.63768]
[1717077632329,2.63642,3793.1,3791.3,3.913768]
[1717077632596,2.63642,3793.1,3791.4,2.63754]
[1717077632822,2.63642,3793.1,3791.5,3.55]
[1717077633104,2.63642,3793.1,3791.6,2.0101308]
[1717077633305,2.63642,3793.1,3791.7,0.55]
[1717077633459,2.08661473,3793.1,3791.7,3.55]
[1717077633799,4.54608,3793.6,3791.8,2.63726]
[1717077634011,2.63608,3793.6,3792.0,1.0]
[1717077634206,2.63608,3793.6,3792.1,0.718726]
[1717077634498,2.63608,3793.6,3792.1,1.268726]
[1717077635619,1.91,3793.3,3792.1,5.268726]
[1717077635910,2.63608,3793.6,3793.0,35.0]
[1717077636388,4.54571,3794.1,3793.0,35.0]
[1717077636563,2.63537,3794.6,3793.1,4.73876532]
[1717077636989,2.63537,3794.6,3792.7,3.0]
[1717077637204,2.63537,3794.6,3793.6,35.0]
[1717077639608,2.537,3795.0,3793.6,35.0]
[1717077639609,2.6356,3794.2,3793.6,35.0]
[1717077640903,2.6356,3794.2,3793.2,3.0]
[1717077641109,2.6356,3794.2,3792.7,3.54814179]
[1717077641453,2.6356,3794.2,3793.7,35.0]
[1717077641772,2.63533,3794.6,3793.7,35.0]
[1717077643113,2.63533,3794.6,3793.4,0.54814179]
[1717077643315,2.63533,3794.6,3793.5,0.91601276]
[1717077643614,2.63556,3794.3,3793.6,35.0]
[1717077645525,2.63556,3794.3,3793.7,2.29001658]
[1717077645884,2.63556,3794.3,3793.8,0.91600663]
[1717077646079,2.63556,3794.3,3793.9,35.0]
[1717077646307,2.63556,3794.3,3794.0,2.10110068]
[1717077646698,2.63556,3794.3,3793.6,0.54814179]
[1717077646895,2.63556,3794.3,3793.6,1.46415836]
[1717077647424,2.63556,3794.3,3794.1,35.0]
[1717077647796,2.537,3795.0,3794.1,35.0]
[1717077647797,2.6353,3794.7,3794.1,35.0]
[1717077648144,2.6355,3794.4,3794.1,35.0]
[1717077649312,2.537,3795.0,3793.4,0.54814179]
[1717077649313,0.26355,3794.3,3793.4,0.54814179]
[1717077649515,2.537,3794.0,3793.1,0.54814179]
[1717077649733,2.537,3794.0,3793.2,35.91617427]
[1717077649889,2.537,3794.0,3793.2,35.0]
[1717077650242,2.537,3794.0,3793.3,0.91617663]
[1717077650539,2.63601,3793.6,3793.3,2.59588552]
[1717077650994,2.63579,3794.0,3793.3,2.59588552]
[1717077651499,2.63579,3794.0,3793.4,0.9161341]
[1717077652009,2.63579,3794.0,3793.3,3.97008667]
[1717077652010,2.63579,3794.0,3793.3,2.59588552]
[1717077652203,2.63579,3794.0,3793.4,1.2355046]
[1717077653225,2.63579,3794.0,3793.5,0.91608815]
[1717077653409,2.63579,3794.0,3793.4,1.2355046]
[1717077653732,2.63579,3794.0,3793.5,0.91607614]
[1717077653938,2.63551,3794.4,3793.5,0.91607614]
[1717077654139,2.63523,3794.8,3793.6,0.70738916]
[1717077654329,2.63523,3794.8,3794.1,35.0]
[1717077656725,2.537,3795.4,3794.1,35.0]
[1717077656726,2.6354,3794.5,3794.1,35.0]
[1717077658336,2.63511,3795.0,3794.1,35.0]
[1717077658547,1.902,3794.7,3794.1,35.0]
[1717077659123,1.902,3794.7,3794.1,37.59588552]
[1717077659325,2.63552,3794.4,3794.1,37.59588552]
[1717077661369,2.6356,3794.2,3793.6,0.70738916]
[1717077661509,2.6356,3794.2,3793.1,1.054924]
[1717077661709,2.6356,3794.2,3793.2,35.0]
[1717077661943,2.6356,3794.2,3793.3,3.0]
[1717077662143,2.6356,3794.2,3793.4,2.59588552]
[1717077662335,2.6356,3794.2,3793.5,3.0]
[1717077662655,2.6356,3794.2,3793.6,35.0]
[1717077663024,2.63583,3793.9,3792.8,5.30118956]
[1717077663239,4.53783,3793.9,3792.9,1.50099797]
[1717077663437,2.63606,3793.6,3792.9,0.58493314]
[1717077663751,2.63606,3793.6,3793.0,35.0]
[1717077665227,2.63627,3793.3,3793.0,35.0]
[1717077665415,2.63627,3793.3,3793.0,2.59588552]
[1717077665612,2.63627,3793.3,3792.0,1.37428453]
[1717077665919,2.63627,3793.3,3792.1,35.9163027]
[1717077666223,2.63627,3793.3,3792.2,0.28491807]
[1717077666432,2.63627,3793.3,3792.3,2.59588552]
[1717077666649,2.63627,3793.3,3792.0,4.0]
[1717077666852,2.63627,3793.3,3792.4,35.0]
[1717077667031,2.63627,3793.3,3792.5,3.0]
[1717077667555,4.53845,3793.0,3792.4,35.0]
[1717077668153,2.63667,3792.7,3792.4,35.0]
[1717077668865,2.63678,3792.5,3792.4,35.0]
[1717077669942,1.902,3792.6,3791.4,5.30118956]
[1717077669943,2.63707,3792.1,3791.4,5.30118956]
[1717077670144,2.63707,3792.1,3791.5,0.53011896]
[1717077670364,2.63734,3791.7,3791.5,0.53011896]
[1717077671125,2.63734,3791.7,3791.0,35.0]
[1717077672130,2.63708,3792.1,3790.3,1.0]
[1717077672369,2.63708,3792.1,3790.4,4.0]
[1717077672543,2.63708,3792.1,3791.7,35.0]
[1717077673345,4.5392,3791.9,3791.7,35.0]
[1717077673853,4.5392,3791.9,3790.8,3.0]
[1717077674071,4.5392,3791.9,3790.5,4.055663]
[1717077674234,4.5392,3791.9,3790.6,4.0]
[1717077674435,4.5392,3791.9,3790.7,38.8055663]
[1717077675766,1.902,3791.5,3790.7,38.8055663]
[1717077675966,4.5392,3791.9,3790.7,3.8055663]
[1717077676166,2.63693,3792.3,3790.7,3.8055663]
[1717077676371,2.63693,3792.3,3790.8,1.43055663]
[1717077676570,2.63693,3792.3,3791.9,35.0]
[1717077677182,4.53893,3792.3,3791.9,35.0]
[1717077678343,2.63693,3792.3,3791.9,35.0]
[1717077681251,2.63706,3792.1,3791.9,35.0]
[1717077683367,2.63706,3792.1,3790.8,3.88055663]
[1717077683368,2.63741,3791.6,3790.8,3.88055663]
[1717077683567,2.63741,3791.6,3790.9,3.0]
[1717077683766,2.63741,3791.6,3790.8,0.88055663]
[1717077683967,2.63741,3791.6,3791.3,35.0]
[1717077684292,2.63741,3791.6,3791.4,2.59588552]
[1717077684792,2.63763,3791.3,3790.8,0.88055663]
[1717077684969,2.63763,3791.3,3790.7,3.0]
[1717077685153,2.63763,3791.3,3790.4,3.0]
[1717077685348,2.63763,3791.3,3790.5,35.0]
[1717077685553,2.63777,3791.1,3790.5,35.0]
[1717077685793,2.63777,3791.1,3790.5,37.59588552]
[1717077685989,2.63799,3790.8,3790.5,35.0]
[1717077686302,2.6381,3790.6,3790.5,35.0]
[1717077687167,2.63833,3790.3,3789.4,0.41305045]
[1717077687356,2.63833,3790.3,3789.6,4.0]
[1717077687558,2.63833,3790.3,3789.7,35.54690235]
[1717077689207,2.63833,3790.3,3789.7,0.54690235]
[1717077689415,2.63833,3790.3,3789.4,0.41305045]
[1717077690792,2.63833,3790.3,3789.5,35.0]
[1717077691461,2.63833,3790.3,3789.4,0.41305045]
[1717077692025,2.63833,3790.3,3790.2,35.0]
[1717077692228,2.63864,3789.9,3789.4,0.41305045]
[1717077692700,2.63864,3789.9,3789.5,35.0]
[1717077694068,2.6388,3789.6,3789.5,35.0]
[1717077694224,2.08854342,3789.6,3789.5,35.0]
[1717077696639,2.54,3789.7,3788.2,1.056331]
[1717077696840,2.63944,3788.7,3787.5,2.64022]
[1717077697144,2.63944,3788.7,3787.7,4.0]
[1717077697885,2.54,3788.8,3787.8,35.0]
[1717077698085,2.54,3788.8,3788.0,4.0]
[1717077698386,1.56152686,3788.8,3788.1,5.59588552]
[1717077698781,1.56152686,3788.8,3788.1,3.0]
[1717077698980,1.56152686,3788.8,3788.2,35.0]
[1717077699382,4.20091686,3788.8,3788.2,35.0]
[1717077700124,2.63912,3789.2,3788.2,35.0]
[1717077700326,2.63912,3789.2,3788.3,2.59588552]
[1717077700682,2.63912,3789.2,3788.1,3.0]
[1717077700878,2.54,3790.1,3788.8,35.0]
[1717077701129,2.63855,3790.0,3788.8,35.0]
[1717077701311,2.63827,3790.4,3788.9,3.0]
[1717077701480,2.63827,3790.4,3789.0,0.563931]
[1717077701882,2.63827,3790.4,3789.8,35.0]
[1717077702442,5.17849,3790.1,3789.8,35.0]
[1717077704130,5.17815,3790.6,3789.8,35.0]
[1717077704500,2.63815,3790.6,3789.8,35.0]
[1717077704697,2.63815,3790.6,3789.9,2.59588552]
[1717077704911,2.63782,3791.1,3789.9,2.59588552]
[1717077705128,2.63782,3791.1,3790.0,3.0]
[1717077705348,2.63782,3791.1,3790.1,35.0]
[1717077708335,5.17744,3791.6,3790.1,35.0]
[1717077708537,5.17744,3791.6,3790.2,5.59588552]
[1717077708831,5.17744,3791.6,3790.2,3.0]
[1717077709076,5.17744,3791.6,3790.6,35.0]
[1717077709533,2.63744,3791.6,3790.6,35.0]
[1717077709738,2.63715,3792.0,3790.7,3.0]
[1717077709937,2.63685,3792.4,3791.0,2.63782]
[1717077710136,2.63685,3792.4,3791.1,3.0]
[1717077710308,2.63685,3792.4,3791.6,35.0]
[1717077712440,2.54,3792.6,3791.6,35.0]
[1717077712741,2.63685,3792.4,3791.7,2.59588552]
[1717077714339,2.63685,3792.4,3791.1,3.0]
[1717077714510,2.63685,3792.4,3791.8,35.0]
[1717077715800,2.63713,3792.0,3791.8,35.0]
[1717077717138,2.54,3792.6,3791.8,35.0]
[1717077717139,2.63682,3792.5,3791.8,35.0]
[1717077717344,2.63682,3792.5,3791.9,2.59588552]
[1717077718217,2.63652,3792.9,3791.9,2.59588552]
[1717077718426,2.63597,3793.7,3792.0,5.6371]
[1717077718752,2.63597,3793.7,3792.3,2.63687]
[1717077718910,2.63597,3793.7,3792.5,35.0]
[1717077719124,2.63597,3793.7,3792.6,3.0]
[1717077719529,2.6362,3793.4,3792.6,3.0]
[1717077721357,2.6359,3793.8,3792.6,3.0]
[1717077721555,2.6359,3793.8,3792.7,2.59588552]
[1717077721773,2.6359,3793.8,3792.8,3.0]
[1717077722686,2.6359,3793.8,3792.9,35.0]
[1717077722849,2.6359,3793.8,3793.0,3.0]
[1717077723044,2.63562,3794.2,3793.0,3.0]
[1717077723282,2.63562,3794.2,3793.1,2.59588552]
[1717077723488,2.63562,3794.2,3793.0,3.0]
[1717077723790,2.63562,3794.2,3793.7,35.0]
[1717077725209,2.54,3794.9,3793.7,35.0]
[1717077725210,2.63535,3794.6,3793.7,35.0]
[1717077725661,2.63508,3795.0,3793.8,3.0]
[1717077725995,2.63508,3795.0,3793.9,2.59588552]
[1717077726194,2.63508,3795.0,3793.8,3.0]
[1717077726353,2.63508,3795.0,3794.3,35.0]
[1717077729500,2.63478,3795.4,3793.7,2.6359]
[1717077729701,2.54,3796.2,3794.0,2.63572]
[1717077729899,1.054717,3798.4,3793.9,3.0]
[1717077729900,2.63449,3795.8,3794.1,1.55]
[1717077730206,2.63419,3796.3,3794.8,35.0]
[1717077730499,1.054717,3798.4,3794.9,2.34018212]
[1717077730500,2.7610309,3796.8,3794.9,2.34018212]
[1717077730659,0.1272009,3796.8,3795.4,2.6347]
[1717077730862,0.1272009,3796.8,3795.8,35.0]
[1717077731259,2.7610209,3796.8,3795.8,35.0]
[1717077731763,2.54,3796.5,3795.8,35.0]
[1717077732149,2.54,3796.5,3795.9,0.563931]